bitfinex-derivatives/quotes_BNBF0:USTF0_20251010
["timestamp","ask_amount","ask_price","bid_price","bid_amount"]
[1760095191781,0.1156533,1266.4,1265.4,0.53591743]
[1760095192082,0.1156533,1266.4,1265.5,0.53591743]
[1760095192281,0.1156533,1266.4,1265.6,0.53591743]
[1760095192583,0.1156533,1266.4,1265.0,0.56812374]
[1760095192783,0.1156533,1266.4,1265.1,0.53564784]
[1760095192980,0.1156533,1266.4,1265.2,0.53564784]
[1760095193178,0.1156533,1266.4,1265.3,0.53564784]
[1760095193379,0.1156533,1266.4,1264.9,0.56812374]
[1760095193681,0.1156533,1266.4,1265.0,0.53561184]
[1760095193878,0.1156533,1266.4,1265.1,0.53561184]
[1760095194082,0.1156533,1266.4,1265.2,0.53561184]
[1760095194282,0.1156533,1266.4,1265.3,0.53561184]
[1760095194484,0.1156533,1266.4,1265.0,0.56812374]
[1760095194778,0.1156533,1266.4,1265.1,0.53536838]
[1760095194979,0.1156533,1266.4,1265.2,0.53536838]
[1760095195182,0.1156533,1266.4,1265.3,0.53536838]
[1760095195383,0.1156533,1266.4,1264.9,0.56812374]
[1760095195680,0.1156533,1266.4,1265.0,0.53512431]
[1760095195884,0.1156533,1266.4,1265.1,0.53512431]
[1760095196080,0.1156533,1266.4,1265.2,0.53512431]
[1760095196381,0.1156533,1266.4,1264.5,0.56812374]
[1760095196584,0.1156533,1266.4,1264.6,1.10334471]
[1760095196881,0.1156533,1266.4,1264.7,1.10334471]
[1760095197085,0.1156533,1266.4,1264.8,0.53522097]
[1760095197282,0.1156533,1266.4,1264.9,0.53522097]
[1760095197486,0.1156533,1266.4,1265.0,0.53522097]
[1760095197784,0.1156533,1266.4,1265.1,0.53522097]
[1760095197987,0.1156533,1266.4,1265.2,0.53522097]
[1760095198188,0.1156533,1266.4,1265.3,0.53522097]
[1760095198487,0.1156533,1266.4,1264.5,0.56812374]
[1760095198683,0.1156533,1266.4,1264.6,0.53455073]
[1760095198882,0.1156533,1266.4,1264.7,0.53455073]
[1760095199086,0.1156533,1266.4,1264.8,0.53455073]
[1760095199288,0.1156533,1266.4,1264.9,0.53455073]
[1760095199588,0.1156533,1266.4,1265.0,0.53455073]
[1760095199787,0.1156533,1266.4,1264.1,0.75690397]
[1760095199788,0.1156533,1266.4,1265.1,0.53455073]
[1760095200088,0.1156533,1266.4,1264.4,0.56812374]
[1760095200285,0.1156533,1266.4,1264.5,0.53438957]
[1760095200484,0.1156533,1266.4,1264.6,0.53438957]
[1760095200683,0.1156533,1266.4,1264.7,0.53438957]
[1760095200884,0.1156533,1266.4,1264.8,0.53438957]
[1760095201083,0.1156533,1266.4,1264.9,0.53438957]
[1760095201287,0.1156533,1266.4,1264.4,0.56812374]
[1760095201288,0.1156533,1266.4,1265.0,0.53438957]
[1760095201588,0.1156533,1266.4,1264.3,0.56812374]
[1760095201786,0.1156533,1266.4,1264.4,0.39666857]
[1760095201986,0.1156533,1266.4,1264.3,0.56812374]
[1760095202187,0.1156533,1266.4,1263.9,0.56812374]
[1760095203186,0.1156533,1266.4,1263.8,0.56812374]
[1760095203788,0.1156533,1266.4,1263.6,0.56812374]
[1760095204091,0.1156533,1266.4,1263.5,0.56812374]
[1760095204290,0.1156533,1266.4,1263.1,1.32502771]
[1760095204491,0.19351882,1263.3,1262.9,0.94612996]
[1760095204791,0.19351882,1263.3,1263.1,0.75690397]
[1760095205091,0.19351882,1263.3,1263.0,1.13687682]
[1760095205391,0.19351882,1263.3,1263.1,0.75468003]
[1760095205591,0.19351882,1263.3,1263.2,0.18870079]
[1760095206388,0.19351882,1263.3,1263.2,0.56580178]
[1760095206693,0.19351882,1263.3,1263.1,0.18870079]
[1760095206989,0.19351882,1263.3,1263.2,0.56577502]
[1760095207390,0.19351882,1263.3,1263.2,0.75447581]
[1760095207892,0.38701124,1263.3,1263.2,0.56577502]
[1760095208289,0.38701124,1263.3,1263.1,0.75447581]
[1760095209293,0.38701124,1263.3,1263.1,0.18870079]
[1760095209694,0.19351882,1263.3,1263.2,0.18870079]
[1760095210294,0.19351882,1263.3,1263.0,0.75468003]
[1760095210692,0.19351882,1263.3,1263.1,1.13687682]
[1760095211596,0.19351882,1263.3,1263.0,1.13687682]
[1760095211797,0.19351882,1263.3,1263.1,1.13687682]
[1760095212894,0.19351882,1263.3,1261.9,1.88793849]
[1760095212895,0.19351882,1263.3,1263.2,1.13687682]
[1760095213596,0.19351882,1263.3,1262.0,1.88793849]
[1760095213793,0.19351882,1263.3,1263.2,1.12711726]
[1760095213993,0.19351882,1263.3,1263.2,1.65664283]
[1760095214296,0.19351882,1263.3,1263.2,0.52952557]
[1760095214502,0.19351882,1263.3,1263.2,1.65678119]
[1760095215394,0.19351882,1263.3,1263.2,0.52952557]
[1760095218900,0.19351882,1263.3,1263.2,1.65750196]
[1760095219100,0.19351882,1263.3,1263.2,0.52952557]
[1760095219301,0.19351882,1263.3,1263.2,1.28196254]
[1760095219601,0.19351882,1263.3,1263.2,0.52952557]
[1760095220897,0.19351882,1263.3,1263.2,1.28191502]
[1760095221101,0.19351882,1263.3,1263.2,0.52952557]
[1760095221299,0.19351882,1263.3,1263.2,1.28236643]
[1760095221998,0.19351882,1263.3,1263.2,0.52952557]
[1760095224606,0.19351882,1263.3,1263.2,1.0938008]
[1760095224906,0.19351882,1263.3,1263.2,0.52952557]
[1760095225206,0.38701124,1263.3,1263.2,0.52952557]
[1760095226311,0.19351882,1263.3,1263.2,0.52952557]
[1760095226511,0.19351882,1263.3,1263.2,1.0938008]
[1760095226712,0.19351882,1263.3,1263.2,0.52952557]
[1760095227008,0.19351882,1263.3,1263.2,1.28179102]
[1760095227208,0.19351882,1263.3,1263.2,0.52952557]
[1760095232413,0.19351882,1263.3,1262.3,0.75284086]
[1760095232414,0.19351882,1263.3,1262.5,0.18806636]
[1760095232713,0.19291458,1262.9,1262.6,1.09523384]
[1760095232912,0.19291458,1262.9,1262.7,0.53103475]
[1760095233110,0.19291458,1262.9,1262.8,0.53103475]
[1760095233314,0.19291458,1263.0,1262.8,1.09523384]
[1760095233614,0.19291458,1263.0,1262.9,0.53103475]
[1760095234711,0.19291458,1263.1,1262.9,1.09523384]
[1760095234911,0.19291458,1263.1,1263.0,0.53064713]
[1760095235416,0.19291458,1263.1,1263.0,1.095515]
[1760095235716,0.19291458,1263.1,1263.0,0.53064713]
[1760095236313,0.19291458,1263.1,1263.0,1.095515]
[1760095237017,0.19291458,1263.1,1263.0,0.53064713]
[1760095237610,0.19291458,1263.1,1263.0,1.095515]
[1760095238314,0.19291458,1263.1,1263.0,0.53064713]
[1760095240314,0.19351882,1263.3,1263.0,0.53064713]
[1760095240514,0.19351882,1263.3,1263.2,0.56793984]
[1760095240717,0.19351882,1263.3,1263.2,0.53064713]
[1760095241213,0.19351882,1263.3,1263.2,1.09858697]
[1760095241919,0.19351882,1263.3,1263.2,1.09900815]
[1760095242417,0.19351882,1263.3,1263.2,0.53064713]
[1760095242821,0.19351882,1263.3,1263.2,1.09969634]
[1760095243118,0.19351882,1263.3,1263.2,0.53064713]
[1760095247217,0.3881223,1263.3,1263.2,0.53064713]
[1760095248322,0.3881223,1263.3,1263.2,1.10150964]
[1760095248719,0.19351882,1263.3,1263.2,1.10150964]
[1760095249022,0.19351882,1263.3,1263.2,0.53064713]
[1760095249521,0.19351882,1263.3,1263.2,1.28348799]
[1760095250321,0.19351882,1263.3,1263.2,0.53064713]
[1760095252023,0.38867235,1263.3,1263.2,0.53064713]
[1760095252223,0.19351882,1263.3,1263.2,0.53064713]
[1760095252423,0.19351882,1263.3,1263.2,1.29322744]
[1760095253023,0.38878213,1263.3,1263.2,1.29322744]
[1760095253222,0.19351882,1263.3,1263.2,1.29322744]
[1760095253419,0.38890048,1263.3,1263.2,0.71871349]
[1760095253923,0.38890048,1263.3,1263.2,0.53064713]
[1760095260926,0.38890048,1263.3,1263.2,2.41858562]
[1760095261428,0.38890048,1263.3,1263.2,0.53064713]
[1760095275739,0.38890048,1263.3,1263.2,1.67027007]
[1760095276940,0.38890048,1263.3,1263.2,0.53064713]
[1760095277646,0.38890048,1263.3,1263.2,1.67027007]
[1760095277946,0.38890048,1263.3,1263.2,0.53064713]
[1760095280148,0.38890048,1263.3,1263.2,1.67105078]
[1760095280449,0.38890048,1263.3,1263.2,0.53064713]
[1760095281949,0.38890048,1263.3,1263.2,1.67105078]
[1760095285046,0.38890048,1263.3,1263.2,1.86117219]
[1760095285752,0.38890048,1263.3,1263.2,0.72076854]
[1760095286051,0.38890048,1263.3,1263.2,1.86117219]
[1760095286752,0.58396166,1263.3,1263.2,0.53064713]
[1760095286955,0.38890048,1263.3,1263.2,0.53064713]
[1760095287158,0.38890048,1263.3,1263.2,1.2913759]
[1760095287856,0.38890048,1263.3,1263.2,0.53064713]
[1760095288354,0.5839637,1263.3,1263.2,0.53064713]
[1760095288552,0.38890048,1263.3,1263.2,1.2913759]
[1760095288956,0.58396572,1263.3,1263.2,1.2913759]
[1760095289154,0.38890048,1263.3,1263.2,1.2913759]
[1760095289554,0.58397001,1263.3,1263.2,1.2913759]
[1760095289754,0.38890048,1263.3,1263.2,1.2913759]
[1760095290153,0.58395762,1263.3,1263.2,1.2913759]
[1760095290359,0.38890048,1263.3,1263.2,1.2913759]
[1760095290659,0.38890048,1263.3,1263.2,0.53064713]
[1760095291460,0.58398955,1263.3,1263.2,0.53064713]
[1760095291663,0.38890048,1263.3,1263.2,0.53064713]
[1760095292162,0.58398426,1263.3,1263.2,0.53064713]
[1760095292364,0.58398426,1263.3,1263.2,1.10137528]
[1760095293060,0.38890048,1263.3,1263.2,1.10137528]
[1760095293360,0.38890048,1263.3,1263.2,0.53064713]
[1760095293965,0.38890048,1263.3,1263.2,1.10137528]
[1760095294163,0.38890048,1263.3,1263.2,0.53064713]
[1760095294366,0.38890048,1263.3,1263.2,1.2913759]
[1760095294566,0.58404564,1263.3,1263.2,1.2913759]
[1760095294764,0.38890048,1263.3,1263.2,1.2913759]
[1760095295168,0.58403704,1263.3,1263.2,1.2913759]
[1760095295468,0.58405263,1263.3,1263.2,1.2913759]
[1760095295666,0.38890048,1263.3,1263.2,1.2913759]
[1760095295866,0.58405279,1263.3,1263.2,0.53064713]
[1760095296064,0.38890048,1263.3,1263.2,0.53064713]
[1760095296470,0.58406304,1263.3,1263.2,0.53064713]
[1760095296670,0.38890048,1263.3,1263.2,0.53064713]
[1760095297370,0.58407839,1263.3,1263.2,1.2913759]
[1760095297568,0.38890048,1263.3,1263.2,1.2913759]
[1760095297969,0.58407839,1263.3,1263.2,1.2913759]
[1760095298272,0.58409251,1263.3,1263.2,1.2913759]
[1760095298574,0.58409254,1263.3,1263.2,1.2913759]
[1760095298774,0.38890048,1263.3,1263.2,1.2913759]
[1760095299170,0.38890048,1263.3,1263.2,0.53064713]
[1760095299374,0.38890048,1263.3,1263.2,0.72076854]
[1760095299771,0.38890048,1263.3,1263.2,1.86316512]
[1760095300177,0.38890048,1263.3,1263.2,0.72076854]
[1760095302375,0.38890048,1263.3,1263.2,1.48263433]
[1760095302976,0.58417887,1263.3,1263.2,0.53064713]
[1760095303170,0.38890048,1263.3,1263.2,0.53064713]
[1760095303374,0.38890048,1263.3,1263.2,1.29251292]
[1760095303975,0.38890048,1263.3,1263.2,0.53064713]
[1760095305074,0.38890048,1263.3,1263.2,0.72118521]
[1760095306975,0.38890048,1263.3,1263.2,1.48370679]
[1760095307176,0.38890048,1263.3,1263.2,0.72118521]
[1760095307876,0.38890048,1263.3,1263.2,1.48370679]
[1760095309077,0.38890048,1263.3,1263.2,0.72118521]
[1760095310081,0.38890048,1263.3,1263.2,0.53064713]
[1760095312278,0.38890048,1263.3,1263.2,1.29331676]
[1760095312979,0.38890048,1263.3,1263.2,0.53064713]
[1760095322094,0.38890048,1263.3,1263.2,1.67605513]
[1760095323697,0.38890048,1263.3,1263.2,0.53064713]
[1760095325597,0.38890048,1263.3,1263.2,1.67874353]
[1760095325794,0.38890048,1263.3,1263.2,0.53064713]
[1760095325997,0.38890048,1263.3,1263.2,1.67889481]
[1760095326195,0.38890048,1263.3,1263.2,0.53064713]
[1760095326396,0.38890048,1263.3,1263.2,0.72215535]
[1760095326800,0.38890048,1263.3,1263.2,0.53064713]
[1760095326996,0.38890048,1263.3,1263.2,1.2969065]
[1760095326997,0.58533327,1263.3,1263.2,1.2969065]
[1760095327202,0.58533327,1263.3,1263.2,0.53064713]
[1760095328399,0.58533327,1263.3,1263.2,1.10566711]
[1760095328801,0.78175779,1263.3,1263.2,1.10566711]
[1760095330802,0.78175779,1263.3,1263.2,0.53064713]
[1760095331099,0.78175779,1263.3,1263.2,1.48841472]
[1760095331502,0.78175779,1263.3,1263.2,0.72215535]
[1760095332201,0.78175779,1263.3,1263.2,0.53064713]
[1760095332705,0.78175779,1263.3,1263.2,1.29780184]
[1760095332904,0.78175779,1263.3,1263.2,0.53064713]
[1760095333102,0.78175779,1263.3,1263.2,1.29775454]
[1760095333304,0.78175779,1263.3,1263.2,0.53064713]
[1760095354722,0.78175779,1263.3,1262.5,0.57582394]
[1760095355026,0.78175779,1263.3,1262.6,0.53610978]
[1760095355226,0.78175779,1263.3,1262.7,0.53610978]
[1760095355426,0.78175779,1263.3,1262.8,0.53610978]
[1760095355726,0.78175779,1263.3,1262.9,0.53610978]
[1760095355926,0.78175779,1263.3,1263.0,0.53610978]
[1760095356222,0.78175779,1263.3,1263.1,0.53610978]
[1760095356428,0.78175779,1263.3,1263.2,0.53610978]
[1760095357626,0.78175779,1263.3,1263.2,0.53551546]
[1760095357822,0.78175779,1263.3,1262.5,0.57582394]
[1760095358027,0.78175779,1263.3,1262.6,0.53559834]
[1760095358227,0.78175779,1263.3,1262.7,0.53559834]
[1760095358527,0.78175779,1263.3,1262.8,0.53559834]
[1760095358729,0.78175779,1263.3,1262.9,0.53559834]
[1760095358926,0.78175779,1263.3,1263.0,0.53559834]
[1760095359224,0.78175779,1263.3,1263.1,0.53559834]
[1760095359422,0.78175779,1263.3,1262.5,0.57582394]
[1760095359625,0.78175779,1263.3,1262.6,0.53518812]
[1760095359823,0.78175779,1263.3,1262.7,0.53518812]
[1760095360024,0.78175779,1263.3,1262.8,0.53518812]
[1760095360323,0.78175779,1263.3,1262.9,0.53518812]
[1760095360530,0.78175779,1263.3,1263.0,0.53518812]
[1760095360724,0.78175779,1263.3,1263.1,0.53518812]
[1760095360925,0.78175779,1263.3,1262.5,0.57582394]
[1760095361227,0.78175779,1263.3,1262.6,0.53506159]
[1760095361427,0.78175779,1263.3,1262.7,0.53506159]
[1760095361625,0.78175779,1263.3,1262.8,0.53506159]
[1760095361828,0.78175779,1263.3,1262.9,0.53506159]
[1760095362027,0.78175779,1263.3,1263.0,0.53506159]
[1760095362226,0.78175779,1263.3,1263.1,0.53506159]
[1760095362425,0.78175779,1263.3,1262.5,0.57582394]
[1760095362625,0.78175779,1263.3,1262.6,1.11314092]
[1760095362828,0.78175779,1263.3,1262.7,0.53731698]
[1760095363024,0.78175779,1263.3,1262.8,0.53731698]
[1760095363229,0.78175779,1263.3,1262.9,0.53731698]
[1760095363429,0.78175779,1263.3,1263.0,0.53731698]
[1760095363629,0.78175779,1263.3,1263.1,0.53731698]
[1760095363929,0.78175779,1263.3,1262.6,0.57582394]
[1760095364230,0.78175779,1263.3,1262.7,0.53727585]
[1760095364526,0.78175779,1263.3,1262.8,1.11309979]
[1760095364729,0.78175779,1263.3,1262.9,0.53727585]
[1760095364927,0.78175779,1263.3,1263.0,0.53727585]
[1760095365230,0.78175779,1263.3,1263.1,0.53727585]
[1760095365530,0.78175779,1263.3,1263.2,0.53727585]
[1760095370730,0.78175779,1263.3,1263.2,1.11309979]
[1760095372937,0.78175779,1263.3,1263.2,0.53727585]
[1760095373135,0.78175779,1263.3,1263.2,1.11309979]
[1760095374136,0.78175779,1263.3,1263.2,0.53727585]
[1760095375233,0.78175779,1263.3,1263.2,1.11041133]
[1760095375435,0.97732786,1263.3,1263.2,0.53727585]
[1760095375635,0.78175779,1263.3,1263.2,0.53727585]
[1760095375835,0.78175779,1263.3,1263.2,1.30438326]
[1760095378935,0.78175779,1263.3,1263.2,0.53727585]
[1760095379938,0.78175779,1263.3,1263.2,1.3027242]
[1760095380738,0.58637613,1263.3,1263.2,1.49466188]
[1760095382135,0.58637613,1263.3,1263.2,0.72921353]
[1760095383335,0.58637613,1263.3,1263.2,0.53727585]
[1760095383738,0.78242829,1263.3,1263.2,0.53727585]
[1760095384535,0.78242829,1263.3,1263.2,1.11210294]
[1760095384739,0.58637613,1263.3,1263.2,1.11210294]
[1760095389042,0.78273122,1263.3,1263.2,0.53727585]
[1760095393449,0.58637613,1263.3,1263.2,0.53727585]
[1760095405056,0.72412944,1263.3,1263.2,0.53727585]
[1760095416261,0.92062319,1263.3,1263.2,0.53727585]
[1760095417665,0.72412944,1263.3,1263.2,0.53727585]
[1760095421967,0.72412944,1263.3,1263.2,1.11281121]
[1760095422673,0.72412944,1263.3,1263.2,0.53727585]
[1760095422872,0.72412944,1263.3,1263.2,1.11353201]
[1760095424770,0.72412944,1263.3,1263.2,0.53727585]
[1760095426573,0.72412944,1263.3,1263.2,0.72921353]
[1760095426873,0.72412944,1263.3,1263.2,0.53727585]
[1760095429373,0.72412944,1263.3,1263.2,1.30563809]
[1760095429576,0.72412944,1263.3,1263.2,1.11381072]
[1760095430075,0.72412944,1263.3,1263.2,0.53727585]
[1760095430869,0.72412944,1263.3,1263.2,1.11381072]
[1760095432875,0.72412944,1263.3,1263.2,0.53727585]
[1760095451194,0.33127213,1263.3,1263.2,0.53727585]
[1760095460807,0.33127213,1263.3,1263.2,1.11976025]
[1760095464405,0.33127213,1263.3,1263.2,0.54239189]
[1760095464609,0.33127213,1263.3,1263.2,1.1196708]
[1760095464908,0.33127213,1263.3,1263.0,0.76836224]
[1760095465110,0.33127213,1263.3,1263.2,0.57728855]
[1760095465309,0.33127213,1263.3,1263.2,1.11960668]
[1760095468917,0.33127213,1263.3,1263.2,0.54231813]
[1760095473920,0.33127213,1263.3,1263.2,1.11961256]
[1760095474117,0.52839293,1263.3,1263.2,0.54231813]
[1760095474717,0.33127213,1263.3,1263.2,1.31068037]
[1760095474921,0.5283697,1263.3,1263.2,1.31068037]
[1760095475317,0.5283697,1263.3,1263.2,1.50261805]
[1760095477617,0.5283697,1263.3,1263.2,1.88250349]
[1760095478217,0.72536353,1263.3,1263.2,0.54231813]
[1760095478423,0.5283697,1263.3,1263.2,0.54231813]
[1760095478820,0.5283697,1263.3,1263.2,1.31102483]
[1760095480219,0.5283697,1263.3,1263.2,0.54231813]
[1760095480624,0.5283697,1263.3,1263.2,1.119289]
[1760095481526,0.5283697,1263.3,1263.2,0.54231813]
[1760095481822,0.5283697,1263.3,1263.2,1.119289]
[1760095487025,0.5283697,1263.3,1263.2,0.54231813]
[1760095492136,0.5283697,1263.3,1263.2,1.119289]
[1760095493034,0.5283697,1263.3,1263.2,0.54231813]
[1760095497138,0.72547335,1263.3,1263.2,0.54231813]
[1760095497337,0.5283697,1263.3,1263.2,0.54231813]
[1760095498536,0.72544757,1263.3,1263.2,0.54231813]
[1760095499338,0.58769426,1263.3,1263.2,0.54231813]
[1760095501142,0.58769426,1263.3,1263.2,1.31067589]
[1760095501443,0.58769426,1263.3,1263.2,0.54231813]
[1760095504540,0.58769426,1263.3,1263.2,1.69374861]
[1760095504743,0.58769426,1263.3,1263.2,0.54231813]
[1760095505448,0.58769426,1263.3,1263.2,1.30969463]
[1760095505745,0.58769426,1263.3,1263.2,0.54231813]
[1760095506047,0.58769426,1263.3,1263.2,1.50174383]
[1760095507347,0.58769426,1263.3,1263.2,0.73421566]
[1760095509045,0.58769426,1263.3,1263.2,1.88564614]
[1760095511447,0.58769426,1263.3,1263.2,0.73421566]
[1760095511949,0.58769426,1263.3,1263.2,1.31010961]
[1760095512153,0.58769426,1263.3,1263.2,0.54231813]
[1760095513154,0.58769426,1263.3,1263.2,1.11841487]
[1760095513854,0.58769426,1263.3,1263.2,0.54231813]
[1760095515455,0.58769426,1263.3,1263.2,1.11841487]
[1760095517058,0.58769426,1263.3,1263.2,0.54231813]
[1760095517757,0.78443084,1263.3,1263.2,1.31010961]
[1760095517958,0.58769426,1263.3,1263.2,0.54231813]
[1760095518354,0.58769426,1263.3,1263.2,1.69374861]
[1760095518860,0.58769426,1263.3,1263.2,0.54231813]
[1760095519058,0.78443207,1263.3,1263.2,0.54231813]
[1760095519258,0.58769426,1263.3,1263.2,1.3101807]
[1760095519554,0.58769426,1263.3,1263.2,0.54231813]
[1760095519955,0.78443742,1263.3,1263.2,0.54231813]
[1760095520158,0.58769426,1263.3,1263.2,0.54231813]
[1760095520357,0.78444442,1263.3,1263.2,0.54231813]
[1760095520556,0.58769426,1263.3,1263.2,1.31010471]
[1760095520954,0.78444145,1263.3,1263.2,0.54231813]
[1760095521159,0.58769426,1263.3,1263.2,0.54231813]
[1760095521355,0.78444065,1263.3,1263.2,0.54231813]
[1760095521966,0.78444065,1263.3,1263.2,0.73421566]
[1760095522159,0.78444065,1263.3,1263.2,1.50180954]
[1760095524257,0.78444065,1263.3,1263.2,0.73421566]
[1760095526763,0.78444065,1263.3,1263.2,1.50180954]
[1760095529958,0.78444065,1263.3,1263.2,0.73421566]
[1760095530263,0.78444065,1263.3,1263.2,0.54231813]
[1760095530963,0.78444065,1263.3,1263.2,1.30987946]
[1760095531160,0.78444065,1263.3,1263.2,0.54231813]
[1760095531565,0.78444065,1263.3,1263.2,0.73420665]
[1760095532265,0.78444065,1263.3,1263.2,0.54231813]
[1760095533569,0.78444065,1263.3,1263.2,1.69374861]
[1760095534069,0.78444065,1263.3,1263.2,0.54231813]
[1760095537271,0.78444065,1263.3,1263.2,1.69374861]
[1760095539274,0.78444065,1263.3,1263.2,0.54231813]
[1760095548081,0.78444065,1263.3,1263.2,1.69260311]
[1760095549781,0.78444065,1263.3,1263.2,0.54231813]
[1760095549982,0.78444065,1263.3,1263.2,0.54107064]
[1760095551283,0.78444065,1263.3,1263.2,1.30829294]
[1760095552283,0.78444065,1263.3,1263.2,0.54107064]
[1760095554287,0.78444065,1263.3,1263.2,1.69135562]
[1760095555186,0.78444065,1263.3,1263.2,0.54107064]
[1760095571797,0.78444065,1263.3,1263.2,2.44298916]
[1760095572195,0.78444065,1263.3,1263.2,0.54107064]
[1760095572801,0.78444065,1263.3,1263.2,2.44298916]
[1760095573402,0.78444065,1263.3,1263.2,0.54107064]
[1760095575901,0.78444065,1263.3,1263.2,2.44020366]
[1760095576401,0.78444065,1263.3,1263.2,0.54107064]
[1760095577504,0.78444065,1263.3,1263.2,2.44020366]
[1760095578005,0.78444065,1263.3,1263.2,0.54107064]
[1760095602024,0.58734308,1263.3,1263.2,0.54107064]
[1760095604431,0.58734308,1263.3,1263.2,1.68799554]
[1760095604627,0.58734308,1263.3,1263.2,0.54107064]
[1760095616437,0.58734308,1263.3,1263.2,0.53868127]
[1760095622336,0.39026521,1263.3,1263.2,0.53868127]
[1760095627642,0.39026521,1263.3,1263.2,1.68790057]
[1760095629243,0.39026521,1263.3,1263.2,0.53868127]
[1760095642353,0.19351882,1263.3,1263.2,0.53868127]
[1760095643248,0.19351882,1263.3,1263.2,1.69014312]
[1760095643453,0.19351882,1263.3,1263.2,0.53868127]
[1760095644753,0.19351882,1263.3,1263.2,1.69014312]
[1760095644951,0.19351882,1263.3,1263.2,0.53868127]
[1760095658672,0.19351882,1263.3,1263.2,1.69194217]
[1760095659069,0.19351882,1263.3,1263.2,0.53868127]
[1760095659672,0.19351882,1263.3,1261.6,1.90080322]
[1760095659869,0.19351882,1263.3,1261.7,0.54055739]
[1760095660073,0.19351882,1263.3,1261.8,0.54055739]
[1760095660273,0.19351882,1263.3,1261.9,0.54055739]
[1760095660470,0.19351882,1263.3,1262.0,0.54055739]
[1760095660774,0.19351882,1263.3,1262.1,0.54055739]
[1760095660973,0.19351882,1263.3,1262.2,0.54055739]
[1760095661173,0.19351882,1263.3,1261.6,1.90080322]
[1760095661174,0.19351882,1263.3,1262.3,0.54055739]
[1760095661374,0.19351882,1263.3,1262.4,0.54055739]
[1760095661574,0.19351882,1263.3,1262.5,0.54055739]
[1760095661773,0.19351882,1263.3,1262.6,0.54055739]
[1760095661975,0.19351882,1263.3,1262.7,0.54055739]
[1760095662172,0.19351882,1263.3,1262.8,0.54055739]
[1760095662375,0.19351882,1263.3,1263.2,1.90080322]
[1760095662573,0.19351882,1263.3,1263.2,2.44136061]
[1760095663876,0.19351882,1263.3,1263.2,0.54055739]
[1760095664482,0.19351882,1263.3,1263.2,2.44136061]
[1760095665383,0.19351882,1263.3,1263.2,0.54055739]
[1760095671682,0.19351882,1263.3,1263.2,3.19820491]
[1760095672683,0.19351882,1263.3,1263.2,0.54055739]
[1760095677785,0.19351882,1263.3,1263.2,2.45788828]
[1760095678782,0.19351882,1263.3,1263.2,0.54055739]
[1760095684391,0.19351882,1263.3,1263.2,2.45153794]
[1760095685287,0.19351882,1263.3,1263.2,0.54055739]
[1760095687993,0.19351882,1263.3,1263.2,3.21761158]
[1760095688895,0.19351882,1263.3,1263.2,0.54055739]
[1760095695200,0.19351882,1263.3,1263.2,2.44925312]
[1760095695801,0.19351882,1263.3,1263.2,0.54055739]
[1760095700401,0.19351882,1263.3,1263.2,2.44811729]
[1760095701507,0.19351882,1263.3,1263.2,0.54055739]
[1760095702707,0.19351882,1263.3,1263.2,2.4485181]
[1760095705811,0.19351882,1263.3,1263.2,0.54055739]
[1760095706211,0.19351882,1263.3,1263.2,0.53768009]
[1760095713718,0.19351882,1263.3,1263.2,1.68787019]
[1760095714119,0.19351882,1263.3,1263.2,0.53768009]
[1760095736841,0.19351882,1263.3,1263.2,1.68760968]
[1760095737741,0.19351882,1263.3,1263.2,0.53768009]
[1760095741839,0.19351882,1263.3,1263.2,1.6869582]
[1760095742337,0.19351882,1263.3,1263.2,0.53768009]
[1760095744340,0.19351882,1263.3,1263.2,0.53851143]
[1760095747644,0.19351882,1263.3,1263.2,2.45286367]
[1760095748145,0.19351882,1263.3,1263.2,0.53851143]
[1760095758657,0.19351882,1263.3,1263.2,2.45286367]
[1760095759156,0.19351882,1263.3,1263.2,0.53851143]
[1760095760953,0.19351882,1263.3,1263.2,2.45567482]
[1760095762558,0.19351882,1263.3,1263.2,0.53851143]
[1760095777473,0.19351882,1263.3,1263.2,2.45715291]
[1760095778170,0.19351882,1263.3,1263.2,0.53851143]
[1760095784186,0.19351882,1263.3,1263.2,2.4567268]
[1760095785185,0.19351882,1263.3,1263.2,0.53851143]
[1760095786281,0.19351882,1263.3,1263.2,2.4567268]
[1760095787886,0.19351882,1263.3,1263.2,0.53851143]
[1760095813410,0.19351882,1263.3,1263.2,2.45625755]
[1760095814015,0.19351882,1263.3,1263.2,0.53851143]
[1760095814214,0.19351882,1263.3,1263.2,3.22462407]
[1760095815909,0.19351882,1263.3,1263.2,5.14404477]
[1760095816211,0.19351882,1263.3,1263.2,2.45793213]
[1760095816410,0.19351882,1263.3,1263.2,0.53851143]
[1760095831624,0.19351882,1263.3,1263.2,2.46033804]
[1760095832119,0.19351882,1263.3,1263.2,0.53851143]
[1760095842725,0.14194668,1263.3,1263.2,0.53851143]
[1760095852632,0.10438413,1263.3,1263.2,0.53851143]
[1760095866952,0.07687375,1263.3,1263.2,0.53851143]
[1760095872051,0.03723389,1264.2,1263.2,0.53851143]
[1760095872253,0.03723389,1264.2,1263.3,6.61095497]
[1760095872553,0.03723389,1264.2,1264.1,3.79513613]
[1760095872750,0.03723389,1264.2,1264.1,4.33364756]
[1760095874655,0.03723389,1264.2,1264.1,0.53851143]
[1760095880854,0.03723389,1264.2,1264.1,4.33364756]
[1760095883156,0.17551922,1264.3,1264.1,4.33364756]
[1760095883358,0.17551922,1264.3,1264.2,0.53851143]
[1760095896165,0.13228689,1264.3,1264.2,0.53851143]
[1760095901168,0.39338418,1264.5,1264.2,0.53851143]
[1760095901169,0.20910847,1264.5,1264.2,0.53851143]
[1760095901366,0.20910847,1264.5,1264.3,0.53851143]
[1760095901563,0.20910847,1264.5,1264.4,0.53851143]
[1760095901964,0.20910847,1264.5,1264.0,6.07244354]
[1760095902269,0.20910847,1264.5,1264.1,0.53925813]
[1760095902564,0.20910847,1264.5,1264.3,3.77606208]
[1760095902764,0.20910847,1264.5,1264.4,0.53925813]
[1760095909574,0.20910847,1264.5,1264.4,4.32136143]
[1760095911576,0.20910847,1264.5,1264.4,0.53925813]
[1760095915879,0.20910847,1264.5,1264.4,3.19233471]
[1760095916976,0.20910847,1264.5,1264.4,0.53925813]
[1760095917177,0.20910847,1264.5,1264.3,1.89515851]
[1760095917375,0.20910847,1264.5,1264.4,0.54694505]
[1760095920678,0.16137257,1264.5,1264.4,0.54694505]
[1760095926083,0.12495261,1264.5,1264.4,0.54694505]
[1760095932289,0.09691085,1264.5,1264.4,0.54694505]
[1760095937204,0.03127688,1264.5,1264.4,0.54694505]
[1760095945214,0.02435348,1264.5,1264.4,0.54694505]
[1760095950312,0.19677494,1264.9,1264.4,0.54694505]
[1760095950313,0.17224695,1264.9,1264.4,0.54694505]
[1760095950516,0.17224695,1264.9,1264.5,0.54694505]
[1760095950712,0.17224695,1264.9,1264.6,0.54694505]
[1760095950914,0.17224695,1264.9,1264.7,0.54694505]
[1760095951111,0.17224695,1264.9,1264.8,0.54694505]
[1760095955218,0.13453333,1264.9,1264.8,0.54694505]
[1760095960720,0.10521506,1264.9,1264.8,0.54694505]
[1760095962120,0.10521506,1264.9,1264.8,4.3566654]
[1760095964324,0.10521506,1264.9,1264.8,0.54694505]
[1760095965822,0.08238239,1264.9,1264.8,0.54694505]
[1760095976225,0.06453518,1264.9,1264.8,0.54694505]
[1760095982636,0.05059981,1264.9,1264.8,0.54694505]
[1760095987741,0.05059981,1264.9,1264.8,4.35953822]